bitfinex/quotes_BTCUSD_20220307
["timestamp","ask_amount","ask_price","bid_price","bid_amount"]
[1646680042157,1.745385,37912.0,37909.0,0.002]
[1646680042349,0.11671824,37910.0,37909.0,0.002]
[1646680042551,0.48068096,37910.0,37909.0,0.002]
[1646680042749,0.68068096,37910.0,37909.0,0.002]
[1646680042951,0.46519129,37910.0,37909.0,0.002]
[1646680043249,0.47575729,37910.0,37909.0,0.002]
[1646680043651,0.46519129,37910.0,37909.0,0.002]
[1646680043900,0.45519129,37910.0,37909.0,0.002]
[1646680045702,0.66229478,37910.0,37909.0,0.002]
[1646680045901,0.45519129,37910.0,37909.0,0.002]
[1646680047004,0.36575529,37910.0,37909.0,0.16909488]
[1646680047204,0.26578224,37910.0,37909.0,0.16909488]
[1646680047663,0.21728224,37910.0,37909.0,0.16909488]
[1646680047863,0.10671824,37910.0,37909.0,0.16909488]
[1646680048169,0.20671824,37910.0,37909.0,0.002]
[1646680049070,0.30669129,37910.0,37909.0,0.002]
[1646680049866,0.30669129,37910.0,37909.0,0.00776524]
[1646680049867,0.62215401,37910.0,37909.0,0.00776524]
[1646680050165,0.82215401,37910.0,37909.0,0.00776524]
[1646680050369,1.42065401,37910.0,37909.0,0.00388008]
[1646680050567,1.42065401,37910.0,37908.0,0.002]
[1646680050568,1.85075901,37910.0,37908.0,0.002]
[1646680050766,1.85075901,37910.0,37907.0,0.001]
[1646680050767,1.65,37908.0,37907.0,0.001]
[1646680050968,1.65,37908.0,37894.0,0.004]
[1646680050969,0.106693,37907.0,37894.0,0.004]
[1646680051170,0.28090032,37904.0,37894.0,0.004]
[1646680051401,0.0485,37903.0,37894.0,0.004]
[1646680051608,0.106693,37902.0,37894.0,0.004]
[1646680051803,0.14847305,37901.0,37894.0,0.004]
[1646680052002,0.25516605,37901.0,37894.0,0.004]
[1646680052207,0.35516605,37901.0,37900.0,0.00161291]
[1646680052904,0.67062877,37901.0,37900.0,0.00161291]
[1646680053104,0.606693,37900.0,37894.0,0.004]
[1646680053307,0.1,37899.0,37894.0,0.004]
[1646680053606,0.268093,37899.0,37894.0,0.004]
[1646680053805,0.73202877,37899.0,37894.0,0.004]
[1646680054208,0.81050907,37899.0,37894.0,0.004]
[1646680054405,1.45,37898.0,37894.0,0.004]
[1646680054608,2.56670881,37898.0,37894.0,0.004]
[1646680054806,0.106693,37897.0,37896.0,0.00043319]
[1646680055006,0.573597,37897.0,37896.0,0.00043319]
[1646680055251,0.573597,37897.0,37894.0,0.004]
[1646680055252,1.2,37896.0,37894.0,0.001]
[1646680055454,0.473597,37895.0,37894.0,0.001]
[1646680055652,0.259493,37895.0,37894.0,0.001]
[1646680055953,0.47086605,37895.0,37894.0,0.001]
[1646680056151,0.48021305,37895.0,37894.0,0.001]
[1646680056358,0.36881305,37895.0,37894.0,0.001]
[1646680057251,0.26881305,37895.0,37894.0,0.001]
[1646680057455,0.20680974,37896.0,37894.0,0.40781]
[1646680057854,0.42004705,37906.0,37894.0,0.40781]
[1646680057855,0.59997305,37906.0,37894.0,0.40781]
[1646680058053,0.59997305,37906.0,37896.0,0.40681]
[1646680058255,0.20676573,37906.0,37904.0,0.19573711]
[1646680058453,0.52186971,37910.0,37904.0,0.19573711]
[1646680058454,0.066004,37905.0,37904.0,0.19573711]
[1646680058653,0.2067458,37906.0,37904.0,0.19573711]
[1646680058901,0.2173108,37906.0,37904.0,0.19573711]
[1646680059102,0.20179571,37910.0,37904.0,0.19573711]
[1646680059103,0.106693,37905.0,37904.0,0.19573711]
[1646680059301,0.40853991,37910.0,37904.0,0.19573711]
[1646680059504,0.37303114,37909.0,37904.0,0.19573711]
[1646680059706,0.106693,37909.0,37904.0,0.19573711]
[1646680059902,0.106693,37908.0,37904.0,0.19573711]
[1646680060102,0.67308234,37910.0,37904.0,0.19573711]
[1646680060304,0.4067442,37910.0,37905.0,0.46099469]
[1646680060505,0.2,37910.0,37906.0,0.40681]
[1646680060706,0.2,37910.0,37908.0,0.40681]
[1646680061008,0.2,37910.0,37909.0,0.720914]
[1646680061214,0.30668035,37921.0,37910.0,0.0999]
[1646680061215,0.26633814,37918.0,37910.0,0.0999]
[1646680061406,0.26633814,37921.0,37916.0,0.0644422]
[1646680061608,0.320074,37923.0,37912.0,0.01403858]
[1646680061609,0.26633814,37923.0,37917.0,0.72134142]
[1646680061807,0.43957748,37927.0,37921.0,0.2351784]
[1646680061808,0.320074,37926.0,37921.0,0.2351784]
[1646680062012,0.32026781,37927.0,37923.0,0.40681]
[1646680062208,0.32026781,37927.0,37924.0,0.72134142]
[1646680062209,0.00019381,37927.0,37924.0,0.72134142]
[1646680062404,0.00019381,37927.0,37925.0,0.02622]
[1646680062652,0.01075181,37927.0,37926.0,0.40681]
[1646680062851,0.01094566,37927.0,37926.0,0.40681]
[1646680063050,0.00019385,37927.0,37926.0,0.58280242]
[1646680063650,3.85e-06,37927.0,37926.0,0.92355384]
[1646680063852,3.85e-06,37927.0,37926.0,1.77655384]
[1646680064053,0.37341967,37939.0,37926.0,1.77655384]
[1646680064054,0.320074,37938.0,37927.0,0.01466786]
[1646680064258,0.4459,37951.0,37937.0,0.06751259]
[1646680064259,0.320074,37941.0,37937.0,0.06751259]
[1646680064454,0.320074,37941.0,37938.0,0.30295755]
[1646680064758,0.320074,37941.0,37938.0,0.09717837]
[1646680064953,0.0114,37945.0,37933.0,0.0528]
[1646680064954,0.320074,37940.0,37933.0,0.0528]
[1646680065355,0.0114,37945.0,37940.0,0.40681]
[1646680065356,0.31954506,37943.0,37940.0,0.40681]
[1646680065557,0.81870257,37951.0,37943.0,0.02622]
[1646680065854,0.09997305,37953.0,37947.0,0.40681]
[1646680065855,0.37280257,37953.0,37947.0,0.40681]
[1646680066052,0.37280257,37954.0,37948.0,0.40681]
[1646680066253,0.37280257,37954.0,37953.0,0.38674641]
[1646680066254,0.36780257,37954.0,37953.0,0.38674641]
[1646680066496,0.4459,37962.0,37953.0,0.2806364]
[1646680066497,0.87266534,37962.0,37953.0,0.2806364]
[1646680066697,0.1,37961.0,37953.0,0.2806364]
[1646680066895,0.106693,37958.0,37953.0,0.2806364]
[1646680067095,0.4459,37962.0,37953.0,0.2806364]
[1646680067300,0.106693,37958.0,37953.0,0.2806364]
[1646680067497,0.4459,37962.0,37953.0,0.2806364]
[1646680067697,0.4459,37962.0,37954.0,0.3176219]
[1646680067698,0.00018685,37958.0,37954.0,0.3176219]
[1646680067897,0.00018685,37958.0,37954.0,0.3704219]
[1646680068296,0.00018685,37958.0,37954.0,0.3966419]
[1646680068598,0.00018685,37958.0,37954.0,0.3704219]
[1646680068797,0.18925274,37959.0,37954.0,0.0528]
[1646680068997,0.18925274,37959.0,37945.0,0.0528]
[1646680068998,0.106693,37958.0,37945.0,0.0528]
[1646680069498,0.00189771,37953.0,37945.0,0.0528]
[1646680069901,0.00189771,37953.0,37951.0,0.19581772]
[1646680072050,0.00189771,37953.0,37950.0,0.22082246]
[1646680072249,0.00189771,37953.0,37950.0,0.16037561]
[1646680072849,0.00189771,37953.0,37951.0,0.40681]
[1646680073048,0.00189771,37953.0,37950.0,0.16037561]
[1646680073249,0.00119523,37953.0,37951.0,0.40681]
[1646680073448,0.00119523,37953.0,37951.0,0.07004252]
[1646680073901,0.00119523,37953.0,37951.0,0.2170448]
[1646680074107,0.00119523,37953.0,37944.0,0.01240805]
[1646680074108,0.00119523,37953.0,37946.0,0.0528]
[1646680074303,0.00119523,37953.0,37947.0,0.3176219]
[1646680074502,0.00119523,37953.0,37948.0,0.40681]
[1646680074704,0.00119523,37953.0,37949.0,0.3176219]
[1646680074901,0.00319523,37953.0,37947.0,0.3176219]
[1646680075107,0.00319523,37953.0,37950.0,0.06601812]
[1646680075303,0.0038914,37953.0,37950.0,0.06601812]
[1646680075602,0.0038914,37953.0,37951.0,0.41098318]
[1646680075807,0.0018914,37953.0,37952.0,0.40681]
[1646680076005,0.0053737,37959.0,37952.0,0.81600574]
[1646680076205,0.0053737,37959.0,37952.0,0.0528]
[1646680077104,0.0053737,37959.0,37951.0,0.41098318]
[1646680077752,0.13497135,37961.0,37952.0,0.65]
[1646680077952,0.106693,37960.0,37952.0,0.65]
[1646680078149,0.18497135,37961.0,37949.0,0.3176219]
[1646680078348,0.00019064,37960.0,37948.0,0.24067178]
[1646680078952,0.17261,37959.0,37946.0,0.003]
[1646680079154,0.21638021,37952.0,37947.0,0.19864878]
[1646680079353,0.21638021,37952.0,37946.0,0.003]
[1646680079354,0.156693,37951.0,37946.0,0.003]
[1646680079552,0.156693,37951.0,37944.0,0.19665739]
[1646680079953,0.05,37951.0,37949.0,0.24135219]
[1646680080361,0.00183286,37953.0,37951.0,0.02622]
[1646680080558,0.00183286,37953.0,37952.0,0.48583]
[1646680080752,0.00183286,37953.0,37952.0,0.77511074]
[1646680080956,0.00183286,37953.0,37952.0,0.0528]
[1646680081598,3.286e-05,37953.0,37948.0,0.01305399]
[1646680081800,0.18496269,37965.0,37949.0,0.45531]
[1646680081801,0.31550074,37963.0,37949.0,0.45531]
[1646680082000,0.1,37966.0,37953.0,0.40681]
[1646680082001,0.00019382,37962.0,37953.0,0.40681]
[1646680082201,0.00019382,37962.0,37955.0,0.40681]
[1646680082401,0.00019382,37962.0,37957.0,0.44836192]
[1646680082606,3.82e-06,37962.0,37958.0,0.39022074]
[1646680082805,0.28075897,37979.0,37960.0,0.02622]
[1646680083010,0.20639646,37983.0,37971.0,0.06180422]
[1646680083205,0.20639646,37983.0,37980.0,0.16297281]
[1646680083503,0.21621887,37989.0,37968.0,0.07472]
[1646680083700,0.21621887,37989.0,37975.0,0.13171575]
[1646680083903,0.21621887,37989.0,37972.0,0.24094097]
[1646680083904,0.42411956,37986.0,37972.0,0.24094097]
[1646680084103,0.131765,37980.0,37969.0,0.31550074]
[1646680084401,0.18377906,37977.0,37970.0,0.002]
[1646680084809,0.106693,37976.0,37970.0,0.002]
[1646680085154,0.106693,37974.0,37970.0,0.002]
[1646680085350,0.156693,37974.0,37970.0,0.002]
[1646680085556,0.156693,37974.0,37967.0,0.21327238]
[1646680085751,0.106693,37970.0,37967.0,0.21327238]
[1646680086051,0.05,37970.0,37967.0,0.21327238]
[1646680086450,0.05,37971.0,37967.0,0.21327238]
[1646680086650,0.15,37973.0,37967.0,0.21327238]
[1646680086849,0.00019384,37970.0,37967.0,0.21327238]
[1646680087049,0.00019384,37970.0,37967.0,0.27915146]
[1646680087250,0.00019384,37970.0,37968.0,0.6178881]
[1646680087452,0.00019384,37970.0,37969.0,0.31550074]
[1646680087652,0.1,37978.0,37969.0,0.72231074]
[1646680087857,0.5458,37984.0,37969.0,0.72231074]
[1646680087858,0.0999,37984.0,37970.0,0.40681]
[1646680088158,0.0999,37984.0,37969.0,0.3317367]
[1646680088159,0.106693,37988.0,37980.0,0.23198892]
[1646680088351,0.1998,37985.0,37980.0,0.23198892]
[1646680088551,0.106693,37984.0,37980.0,0.23198892]
[1646680088754,0.1998,37985.0,37980.0,0.16613073]
[1646680089014,0.01,37989.0,37981.0,0.31550074]
[1646680089015,0.00019383,37984.0,37981.0,0.31550074]
[1646680089220,0.00019383,37984.0,37980.0,0.16613073]
[1646680089522,0.00019383,37984.0,37981.0,0.06585182]
[1646680089817,0.00019383,37984.0,37976.0,0.01315]
[1646680089818,0.106693,37983.0,37976.0,0.01315]
[1646680090015,0.106693,37983.0,37970.0,0.78910074]
[1646680090216,0.01,37989.0,37976.0,0.21264546]
[1646680090415,0.00019383,37984.0,37977.0,0.31550074]
[1646680090616,0.00019383,37984.0,37980.0,0.06585839]
[1646680090921,0.106693,37983.0,37982.0,0.19250083]
[1646680091116,0.156693,37983.0,37982.0,0.19250083]
[1646680091422,0.01,37989.0,37982.0,0.19250083]
[1646680091423,0.11,37989.0,37982.0,0.19250083]
[1646680091618,0.00019181,37984.0,37983.0,0.38135387]
[1646680091823,0.00019181,37984.0,37983.0,0.82658429]
[1646680092217,0.00019181,37984.0,37983.0,0.83973429]
[1646680092416,0.01,37989.0,37983.0,0.82658429]
[1646680092665,0.01,37989.0,37988.0,0.40681]
[1646680092870,0.01,37989.0,37983.0,0.18042752]
[1646680093063,0.01,37989.0,37983.0,0.16727752]
[1646680093263,0.01,37989.0,37983.0,0.48277826]
[1646680093863,0.01,37989.0,37984.0,0.65]
[1646680093864,0.00931174,37989.0,37984.0,0.65]
[1646680095262,0.00931174,37989.0,37983.0,0.29896918]
[1646680095463,0.106693,37986.0,37983.0,0.06585432]
[1646680095670,0.106693,37986.0,37981.0,0.64667052]
[1646680095671,0.17256,37986.0,37981.0,0.64667052]
[1646680095867,0.27256,37986.0,37981.0,0.64667052]
[1646680096070,0.206693,37986.0,37981.0,0.64667052]
[1646680096506,0.27256,37986.0,37981.0,0.64667052]
[1646680096702,0.338427,37986.0,37981.0,0.64667052]
[1646680096899,0.1,37986.0,37981.0,0.64667052]
[1646680097300,0.05,37987.0,37981.0,0.64667052]
[1646680097500,0.00931174,37989.0,37981.0,0.64667052]
[1646680097699,0.106693,37988.0,37981.0,0.64667052]
[1646680097900,0.05,37988.0,37983.0,0.39988315]
[1646680098099,0.05,37988.0,37983.0,0.24089317]
[1646680098100,0.106693,37987.0,37983.0,0.24089317]
[1646680098302,0.106693,37987.0,37981.0,0.64667052]
[1646680099200,0.15610969,37982.0,37981.0,0.64667052]
[1646680099400,0.26280269,37982.0,37981.0,0.64667052]
[1646680099601,0.31280269,37982.0,37981.0,0.64667052]
[1646680100257,0.36130269,37982.0,37981.0,0.64667052]
[1646680100459,1.65,37981.0,37965.0,0.01315]
[1646680100761,0.106693,37965.0,37960.0,0.01315]
[1646680100956,0.106693,37965.0,37956.0,0.01326876]
[1646680100957,0.05,37964.0,37956.0,0.01326876]
[1646680101156,0.05,37964.0,37956.0,0.00010876]
[1646680101358,0.32026742,37966.0,37959.0,0.000435]
[1646680101656,0.30286542,37966.0,37959.0,0.000435]
[1646680101855,0.0985,37966.0,37961.0,0.15573514]
[1646680102056,0.0485,37966.0,37961.0,0.15573514]
[1646680102258,0.2498,37968.0,37963.0,0.24156361]
[1646680102457,0.05,37968.0,37963.0,0.24156361]
[1646680102656,0.1,37970.0,37966.0,0.06246178]
[1646680102657,0.05,37970.0,37966.0,0.06246178]
[1646680102858,0.06062537,37974.0,37967.0,0.16561323]
[1646680103059,0.06062537,37974.0,37967.0,0.29736106]
[1646680103257,0.06062537,37974.0,37969.0,0.27216391]
[1646680103258,0.106693,37973.0,37969.0,0.27216391]
[1646680103459,0.06062537,37974.0,37969.0,0.27216391]
[1646680103659,0.106693,37973.0,37969.0,0.27216391]
[1646680103912,0.106693,37972.0,37967.0,0.16561323]
[1646680104108,0.21298691,37973.0,37967.0,0.16561323]
[1646680104109,0.106693,37971.0,37967.0,0.16561323]
[1646680104510,0.222581,37971.0,37960.0,0.01315]
[1646680104706,0.115888,37971.0,37960.0,0.21704959]
[1646680104906,0.05,37971.0,37960.0,0.23019959]
[1646680105106,0.17241066,37970.0,37960.0,0.23019959]
[1646680105307,0.27091066,37970.0,37959.0,0.00038606]
[1646680105507,0.19255203,37964.0,37959.0,0.00038606]
[1646680105708,0.19255203,37964.0,37956.0,0.18370722]
[1646680105709,0.17251,37963.0,37956.0,0.18370722]
[1646680105907,0.17251,37963.0,37957.0,0.00038608]
[1646680106906,0.17251,37963.0,37956.0,0.18370722]
[1646680107106,0.17251,37963.0,37956.0,0.18379426]
[1646680107509,0.238417,37963.0,37956.0,0.18379426]
[1646680108153,0.338417,37963.0,37956.0,0.18379426]
[1646680108350,0.388417,37963.0,37956.0,0.18379426]
[1646680108751,0.281814,37963.0,37956.0,0.18379426]
[1646680109055,0.131814,37963.0,37956.0,0.18379426]
[1646680109254,0.106603,37962.0,37956.0,0.18370722]
[1646680109550,0.156603,37962.0,37956.0,0.18379426]
[1646680109951,0.156603,37962.0,37956.0,8.704e-05]
[1646680110153,0.065909,37961.0,37956.0,8.704e-05]
[1646680110351,0.172523,37960.0,37956.0,8.704e-05]
[1646680110550,0.172523,37960.0,37956.0,8.918e-05]
[1646680110551,0.31744244,37959.0,37956.0,8.918e-05]
[1646680110757,0.156603,37958.0,37956.0,8.918e-05]
[1646680111406,0.065923,37957.0,37956.0,8.918e-05]
[1646680111611,0.172526,37957.0,37952.0,0.2191564]
[1646680111803,0.58996844,37957.0,37955.0,8.918e-05]
[1646680112003,0.272526,37957.0,37955.0,8.918e-05]
[1646680112406,0.277526,37957.0,37955.0,8.918e-05]
[1646680112805,0.277526,37957.0,37952.0,0.2191564]
[1646680113014,0.136845,37957.0,37954.0,8.918e-05]
[1646680113208,0.005,37957.0,37954.0,8.918e-05]
[1646680113406,0.005,37957.0,37955.0,0.17257318]
[1646680113605,0.0985,37958.0,37955.0,0.17257318]
[1646680113606,0.0485,37958.0,37955.0,0.17257318]
[1646680114210,0.0485,37958.0,37955.0,0.17266188]
[1646680114406,0.0505,37958.0,37955.0,0.17266188]
[1646680114609,0.0505,37958.0,37955.0,8.87e-05]
[1646680114806,0.106603,37957.0,37955.0,8.87e-05]
[1646680115260,0.156603,37957.0,37952.0,0.2191564]
[1646680115460,0.156603,37957.0,37950.0,0.18242654]
[1646680115461,0.222519,37957.0,37950.0,0.18242654]
[1646680115662,0.165916,37957.0,37955.0,8.87e-05]
[1646680115858,0.106603,37956.0,37955.0,8.87e-05]
[1646680116259,0.05,37957.0,37955.0,8.87e-05]
[1646680116460,0.05,37957.0,37951.0,0.06042665]
[1646680116660,0.010551,37958.0,37957.0,0.62122203]
[1646680116864,0.117154,37958.0,37957.0,0.62122203]
[1646680117059,0.106603,37958.0,37957.0,0.62122203]
[1646680117461,0.106603,37958.0,37957.0,0.79654654]
[1646680117660,0.231819,37963.0,37957.0,0.79654654]
[1646680117862,0.106603,37962.0,37957.0,0.79654654]
[1646680118061,0.156603,37962.0,37957.0,0.79654654]
[1646680118262,0.065908,37960.0,37957.0,0.79654654]
[1646680118461,0.106603,37959.0,37957.0,0.79654654]
[1646680118662,0.156603,37959.0,37957.0,0.79654654]
[1646680118911,0.165802,37965.0,37957.0,0.85143832]
[1646680119115,0.09997305,37968.0,37959.0,0.406256]
[1646680119311,0.2348,37973.0,37959.0,0.406256]
[1646680119519,0.1998,37971.0,37965.0,0.0653596]
[1646680119711,0.26705272,37974.0,37966.0,0.23948516]
[1646680119712,0.010548,37969.0,37966.0,0.23948516]
[1646680119911,0.010548,37969.0,37967.0,0.74468963]
[1646680120110,0.06062537,37974.0,37973.0,0.15715766]
[1646680121509,0.06062537,37974.0,37969.0,0.06587732]
[1646680121719,0.09997305,37981.0,37970.0,0.74883396]
[1646680121914,0.20636376,37986.0,37972.0,0.406256]
[1646680122115,0.00931174,37989.0,37973.0,0.31538484]
[1646680122312,0.00931174,37989.0,37971.0,0.34160484]
[1646680122512,0.00931174,37989.0,37972.0,0.406256]
[1646680122755,0.065866,37986.0,37980.0,0.19354946]
[1646680123055,0.172469,37985.0,37977.0,0.22717251]
[1646680123256,0.106603,37984.0,37977.0,0.22717251]
[1646680123857,0.156603,37984.0,37977.0,0.22717251]
[1646680124056,0.156603,37984.0,37976.0,0.16852651]
[1646680124057,0.19876598,37981.0,37976.0,0.16852651]
[1646680124257,0.24876598,37981.0,37976.0,0.16852651]
[1646680125659,0.24876598,37981.0,37975.0,0.31538484]
[1646680125860,0.106603,37980.0,37970.0,0.31538484]
[1646680126060,0.106603,37980.0,37968.0,0.31538484]
[1646680126061,0.131768,37980.0,37968.0,0.31538484]
[1646680126261,0.24876598,37981.0,37968.0,0.31538484]
[1646680126706,0.24876598,37981.0,37971.0,0.20329447]
[1646680126905,0.106603,37980.0,37971.0,0.20329447]
[1646680127104,0.24876598,37981.0,37971.0,0.20329447]
[1646680127308,0.106603,37980.0,37971.0,0.20329447]
[1646680127505,0.288356,37980.0,37965.0,0.01315]
[1646680127705,0.222479,37980.0,37965.0,0.01315]
[1646680128204,0.115876,37980.0,37967.0,0.23083736]
[1646680128404,0.065888,37976.0,37971.0,0.1979361]
[1646680128606,0.05,37978.0,37971.0,0.1979361]
[1646680128806,0.106603,37979.0,37971.0,0.1979361]
[1646680129105,0.156603,37979.0,37971.0,0.1979361]
[1646680129306,0.05,37979.0,37969.0,0.07171231]
[1646680129506,0.05,37979.0,37968.0,0.18832397]
[1646680129707,0.21123845,37975.0,37968.0,0.18832397]
[1646680130153,0.26123845,37975.0,37968.0,0.18832397]
[1646680130356,0.26123845,37975.0,37969.0,0.22190947]
[1646680130555,0.05,37975.0,37969.0,0.28778804]
[1646680130756,0.06588,37978.0,37969.0,0.28778804]
[1646680130954,0.106603,37977.0,37969.0,0.28778804]
[1646680131254,0.010546,37975.0,37969.0,0.28778804]
[1646680131456,0.010546,37975.0,37964.0,0.01315]
[1646680131457,0.106603,37974.0,37964.0,0.01315]
[1646680131655,0.172494,37974.0,37961.0,0.31538484]
[1646680131855,0.065892,37971.0,37961.0,0.31538484]
[1646680132056,0.106603,37970.0,37961.0,0.06469206]
[1646680132355,0.106603,37970.0,37962.0,0.38186665]
[1646680132558,0.2811525,37971.0,37960.0,0.19960512]
[1646680132756,0.156603,37970.0,37961.0,0.31538484]
[1646680132955,0.05,37970.0,37960.0,0.26549815]
[1646680133155,0.05,37970.0,37961.0,0.31538484]
[1646680133357,0.05,37971.0,37962.0,0.13176779]
[1646680133556,0.05,37973.0,37964.0,0.2892141]
[1646680134006,0.05,37974.0,37965.0,0.31538484]
[1646680134210,0.0985,37975.0,37971.0,0.17600923]
[1646680134211,0.05,37975.0,37971.0,0.17600923]
[1646680134406,0.05,37974.0,37971.0,0.24462806]
[1646680134607,0.05,37975.0,37971.0,0.24462806]
[1646680134807,0.106603,37974.0,37972.0,0.29469569]
[1646680135006,0.05,37978.0,37972.0,0.29469569]
[1646680135007,0.106603,37977.0,37972.0,0.29469569]
[1646680135211,0.010546,37974.0,37972.0,0.29469569]
[1646680135410,0.05,37976.0,37971.0,0.17600923]
[1646680135607,0.106603,37975.0,37971.0,0.17600923]
[1646680135809,0.206603,37975.0,37971.0,0.17600923]
[1646680136008,0.1,37975.0,37963.0,0.31538484]
[1646680136208,0.1,37975.0,37959.0,0.04205144]
[1646680136209,0.05,37974.0,37961.0,0.02622]
[1646680136408,0.05,37974.0,37966.0,0.31849095]
[1646680136610,0.06589,37973.0,37966.0,0.31849095]
[1646680136813,0.00931174,37989.0,37971.0,0.15]
[1646680137014,0.00931174,37989.0,37969.0,0.406256]
[1646680137015,0.00931174,37989.0,37976.0,0.406256]
[1646680137213,0.00931174,37989.0,37978.0,0.406256]
[1646680137410,0.00931174,37989.0,37980.0,0.406256]
[1646680137656,0.00931174,37989.0,37983.0,0.406256]
[1646680137861,0.00931174,37989.0,37979.0,0.31538484]
[1646680138052,0.00931174,37989.0,37976.0,0.46538484]
[1646680138252,0.106603,37988.0,37975.0,0.131707]
[1646680138453,0.106603,37988.0,37978.0,0.003]
[1646680138654,0.06587,37987.0,37978.0,0.003]
[1646680138852,0.238355,37988.0,37979.0,0.17801871]
[1646680138853,0.106603,37986.0,37979.0,0.17801871]
[1646680139058,0.17596047,37984.0,37978.0,0.20093157]
[1646680139255,0.156603,37983.0,37979.0,0.06586254]
[1646680139459,0.356403,37983.0,37979.0,0.06586254]
[1646680139857,0.2498,37983.0,37980.0,0.406256]
[1646680140059,0.05,37983.0,37980.0,0.406256]
[1646680140254,0.00931174,37989.0,37980.0,0.406256]
[1646680140458,0.00931174,37989.0,37980.0,0.72164084]
[1646680140853,0.00931174,37989.0,37984.0,0.19695829]
[1646680141057,0.00931174,37989.0,37985.0,0.06585106]
[1646680141515,0.00931174,37989.0,37984.0,0.19695829]
[1646680141916,0.00931174,37989.0,37985.0,0.406256]
[1646680142516,0.00931174,37989.0,37985.0,0.47210409]
[1646680142716,0.00931174,37989.0,37985.0,0.06584809]
[1646680143520,0.00931174,37989.0,37977.0,0.07901344]
[1646680143721,0.01985374,37989.0,37977.0,0.07901344]
[1646680143921,0.01985374,37989.0,37977.0,0.01315]
[1646680143922,0.106603,37988.0,37977.0,0.01315]
[1646680144122,0.322464,37988.0,37969.0,0.89337096]
[1646680144321,0.20019718,37981.0,37973.0,0.17357032]
[1646680144523,0.106603,37980.0,37974.0,0.06786935]
[1646680144822,0.106603,37980.0,37974.0,0.002]
[1646680144823,0.15,37978.0,37974.0,0.002]
[1646680145158,0.065903,37976.0,37974.0,0.002]
[1646680145357,0.159303,37975.0,37974.0,0.002]
[1646680145559,0.36292478,37975.0,37974.0,0.002]
[1646680145761,0.46292478,37975.0,37974.0,0.002]
[1646680146163,0.46292478,37975.0,37959.0,0.0662503]
[1646680146164,1.4,37974.0,37959.0,0.00035725]
[1646680146360,0.065908,37971.0,37959.0,0.00035725]
[1646680146560,0.065911,37968.0,37953.0,0.30807096]
[1646680146760,0.156603,37967.0,37956.0,8.936e-05]
[1646680146961,0.21309864,37964.0,37959.0,0.00035739]
[1646680147165,0.106603,37963.0,37959.0,0.00035739]
[1646680147361,0.156603,37963.0,37959.0,0.00035739]
[1646680147762,0.156603,37963.0,37958.0,0.21683868]
[1646680147965,0.065905,37962.0,37958.0,0.21683868]
[1646680148268,0.05,37963.0,37958.0,0.43931478]
[1646680148768,0.2498,37968.0,37958.0,0.74738574]
[1646680149208,0.2498,37968.0,37962.0,0.21637029]
[1646680149410,0.315693,37968.0,37962.0,0.21637029]
[1646680149606,0.106603,37967.0,37958.0,0.43931478]
[1646680149808,0.2498,37968.0,37958.0,0.43931478]
[1646680150006,0.2498,37968.0,37958.0,0.74738574]
[1646680150207,0.2498,37968.0,37958.0,0.43931478]
[1646680150408,0.315699,37968.0,37958.0,0.43931478]
[1646680150609,0.065903,37966.0,37958.0,0.63213332]
[1646680150815,0.065903,37966.0,37958.0,0.2224761]
[1646680151012,0.106603,37965.0,37958.0,0.2224761]
[1646680151210,0.065903,37966.0,37958.0,0.2224761]
[1646680151410,0.065903,37965.0,37958.0,0.2224761]
[1646680151811,0.19774291,37963.0,37958.0,0.2224761]
[1646680152011,0.0659,37962.0,37958.0,0.2224761]
[1646680152654,0.106603,37961.0,37958.0,0.2224761]
[1646680152853,0.156603,37961.0,37958.0,0.2224761]
[1646680153053,0.05,37961.0,37957.0,0.62122203]
[1646680153253,0.065907,37960.0,37957.0,0.62122203]
[1646680153458,0.115907,37960.0,37957.0,0.62122203]
[1646680156061,0.115907,37960.0,37957.0,0.54698203]
[1646680156512,0.118907,37960.0,37957.0,0.54698203]
[1646680158309,0.115907,37960.0,37957.0,0.54698203]
[1646680158911,0.106603,37959.0,37957.0,0.54698203]
[1646680159115,0.106603,37959.0,37958.0,0.00128494]
[1646680160554,0.109603,37959.0,37958.0,0.00128494]
[1646680161753,0.106603,37959.0,37958.0,0.00128494]
[1646680162559,0.110603,37959.0,37958.0,0.00128494]
[1646680164103,0.106603,37959.0,37958.0,0.00128494]
[1646680164307,0.106603,37959.0,37958.0,0.00127145]
[1646680165703,0.27762844,37959.0,37958.0,0.00127145]
[1646680165905,0.306403,37959.0,37958.0,0.00127145]
[1646680166104,0.30661784,37959.0,37958.0,0.00127145]
[1646680167305,0.20001484,37959.0,37958.0,0.00127145]
[1646680167959,0.30661784,37959.0,37958.0,0.00127145]
[1646680169062,0.30661784,37959.0,37957.0,0.54809455]
[1646680169260,0.25001484,37959.0,37958.0,0.22214577]
[1646680169462,0.00021484,37959.0,37958.0,0.93567677]
[1646680169662,0.01222577,37960.0,37958.0,0.93567677]
[1646680169663,0.01222577,37960.0,37959.0,0.40668567]
[1646680170065,0.01222577,37960.0,37959.0,0.71396067]
[1646680171511,0.1998,37966.0,37965.0,0.15455086]
[1646680171721,0.1998,37966.0,37965.0,0.406256]
[1646680171914,0.1998,37966.0,37960.0,0.307275]
[1646680172120,0.181795,37964.0,37959.0,0.00042967]
[1646680172316,0.247705,37964.0,37959.0,0.00042967]
[1646680172814,0.34978793,37964.0,37959.0,0.00042967]
[1646680173014,0.34978793,37964.0,37959.0,0.18896098]
[1646680173215,0.54958793,37964.0,37959.0,0.18896098]
[1646680173715,0.54242761,37964.0,37959.0,0.18896098]
[1646680174319,0.37443468,37964.0,37959.0,0.18896098]
[1646680174714,0.37443468,37964.0,37959.0,0.19126399]
[1646680177868,0.1998,37963.0,37959.0,0.19126399]
[1646680178906,0.1998,37963.0,37959.0,0.00273268]
[1646680179710,0.265708,37963.0,37959.0,0.00273268]
[1646680180010,0.27659181,37962.0,37961.0,0.00115156]
[1646680180209,0.32659181,37962.0,37961.0,0.00115156]
[1646680180409,0.52639181,37962.0,37961.0,0.00115156]
[1646680180609,0.41978881,37962.0,37961.0,0.00115156]
[1646680180809,0.2498,37962.0,37961.0,0.00115156]
[1646680182860,0.356403,37962.0,37961.0,0.00115156]
[1646680183467,0.65924998,37962.0,37961.0,0.00115156]
[1646680183664,0.356403,37962.0,37961.0,0.00115156]